bitfinex/quotes_SOLUSD_20250714
["timestamp","ask_amount","ask_price","bid_price","bid_amount"]
[1752504749272,0.06,165.9,165.8,22.56444749]
[1752504749460,3.048,165.89,165.78,10.17184749]
[1752504749764,3.048,165.89,165.81,26.95653146]
[1752504749966,3.048,165.89,165.81,16.78468397]
[1752504750481,3.048,165.89,165.8,16.78468397]
[1752504750785,3.048,165.89,165.8,26.95653146]
[1752504751160,3.048,165.89,165.82,10.17184749]
[1752504751476,3.048,165.89,165.79,16.78468397]
[1752504751681,3.048,165.89,165.8,10.17184749]
[1752504751881,3.048,165.89,165.81,16.78468397]
[1752504752470,3.048,165.89,165.78,10.17184749]
[1752504752670,3.048,165.89,165.8,10.17184749]
[1752504753260,3.048,165.89,165.8,16.78468397]
[1752504754563,3.048,165.89,165.78,10.17184749]
[1752504754761,0.06,165.9,165.84,16.78468397]
[1752504754962,0.06,165.9,165.84,26.95653146]
[1752504755182,0.06,165.9,165.86,16.78468397]
[1752504755372,0.06,165.9,165.88,16.78468397]
[1752504755773,0.06,165.9,165.84,16.78468397]
[1752504756266,0.06,165.9,165.81,16.78468397]
[1752504756795,14.7196,165.89,165.77,16.78468397]
[1752504756992,14.7196,165.89,165.76,16.81468397]
[1752504757173,14.7196,165.89,165.78,10.17184749]
[1752504757372,14.7196,165.89,165.76,0.03]
[1752504757580,3.1216,165.88,165.76,0.03]
[1752504757781,12.0021,165.87,165.76,0.03]
[1752504757985,3.1216,165.86,165.76,0.03]
[1752504758390,0.06,165.9,165.85,10.17184749]
[1752504758699,0.2,165.92,165.9,26.0]
[1752504758895,0.2,165.98,165.91,36.77458391]
[1752504759099,0.2,165.98,165.95,10.17184749]
[1752504759779,0.06,166.06,165.95,10.17184749]
[1752504759780,0.06,166.06,165.98,26.0]
[1752504759990,0.06,166.06,165.99,43.85429342]
[1752504760767,0.06,166.06,165.99,10.77429342]
[1752504760995,0.06,166.06,165.99,16.1182496]
[1752504761899,0.06,166.06,165.97,0.60251852]
[1752504762097,0.06,166.06,165.96,41.51580367]
[1752504762405,11.4985,166.06,165.95,33.04]
[1752504762699,0.06,166.06,165.99,15.51580367]
[1752504762897,0.06,166.06,165.98,26.0]
[1752504763081,0.06,166.06,165.99,16.1182496]
[1752504765211,0.06,166.06,165.99,26.1182496]
[1752504765394,0.06,166.06,166.05,15.51580367]
[1752504765592,0.06,166.06,166.05,49.15803191]
[1752504766282,0.06,166.06,166.05,59.15803191]
[1752504766816,0.06,166.06,166.05,0.60222824]
[1752504766995,0.06,166.06,166.02,33.70233706]
[1752504767197,0.06,166.06,166.03,15.51580367]
[1752504767404,0.06,166.06,166.02,49.21814073]
[1752504767605,0.06,166.06,166.02,33.70233706]
[1752504767809,0.06,166.06,166.0,49.2182133]
[1752504768305,0.06,166.06,166.02,16.78468397]
[1752504768487,0.06,166.06,166.02,17.38702103]
[1752504769301,0.06,166.06,166.02,32.9028247]
[1752504769688,0.06,166.06,166.04,16.78468397]
[1752504769887,0.06,166.06,166.04,17.38694848]
[1752504770910,0.06,166.18,166.06,42.78468397]
[1752504771217,0.06,166.18,166.06,68.90267961]
[1752504771794,0.06,166.18,166.06,58.90267961]
[1752504772310,0.06,166.18,166.06,102.06267961]
[1752504772914,0.06,166.18,166.06,92.04267961]
[1752504773696,0.06,166.18,166.06,76.52687594]
[1752504773910,0.06,166.18,166.06,92.26493362]
[1752504774401,0.06,166.18,166.12,16.78468397]
[1752504775117,0.06,166.18,166.12,32.52274165]
[1752504775288,0.06,166.18,166.12,16.78468397]
[1752504776323,0.06,166.18,166.08,16.78468397]
[1752504776501,0.06,166.18,166.1,16.78468397]
[1752504776922,0.06,166.18,165.96,27.09295768]
[1752504776923,0.06,166.18,166.07,16.78468397]
[1752504777216,0.06,166.18,166.1,16.78468397]
[1752504777416,0.06,166.18,166.1,17.38673092]
[1752504777604,0.06,166.18,166.09,32.52274165]
[1752504777788,0.06,166.18,166.11,16.78468397]
[1752504778510,0.06,166.18,166.11,32.52274165]
[1752504778820,0.06,166.18,166.11,33.12475236]
[1752504779201,0.06,166.18,166.11,17.38669468]
[1752504779894,0.06,166.18,166.11,33.12475236]
[1752504780125,0.06,166.18,166.13,15.73805768]
[1752504780302,0.06,166.18,166.13,16.33999592]
[1752504780614,0.06,166.18,166.07,36.0]
[1752504780615,0.06,166.18,166.09,17.38676717]
[1752504781611,0.06,166.18,166.05,15.73805768]
[1752504781820,0.06,166.18,166.06,16.78468397]
[1752504782120,0.06,166.18,166.06,15.73805768]
[1752504782319,0.06,166.18,166.05,32.52274165]
[1752504783117,0.06,166.18,166.06,16.34024965]
[1752504783423,0.06,166.18,166.09,15.73805768]
[1752504783603,0.06,166.18,166.11,16.78468397]
[1752504784006,0.06,166.18,166.13,16.78468397]
[1752504786134,14.1909,166.23,166.13,16.78468397]
[1752504786311,14.1909,166.23,166.04,33.06]
[1752504786312,14.1909,166.23,166.06,16.78468397]
[1752504786509,14.1909,166.23,166.12,16.78468397]
[1752504786714,14.1909,166.23,166.12,17.38665844]
[1752504787105,14.1909,166.23,166.08,16.78468397]
[1752504788016,14.1909,166.23,166.1,16.78468397]
[1752504788603,14.1909,166.23,166.09,16.78468397]
[1752504788807,14.1909,166.23,166.12,16.78468397]
[1752504789107,14.1909,166.23,166.12,17.38665844]
[1752504789311,14.1909,166.23,166.12,33.12471612]
[1752504790027,14.1909,166.23,166.12,17.38665844]
[1752504790237,14.1909,166.23,166.14,16.78468397]
[1752504790638,14.1909,166.23,166.08,16.78468397]
[1752504790935,14.1909,166.23,166.11,32.52274165]
[1752504791306,14.1909,166.23,166.13,16.78468397]
[1752504792323,14.1909,166.23,166.11,16.78468397]
[1752504792518,14.1909,166.23,166.08,16.78468397]
[1752504793243,14.1909,166.23,166.1,16.78468397]
[1752504796446,14.1909,166.23,166.08,16.78468397]
[1752504796949,14.1909,166.23,166.09,16.78468397]
[1752504797245,14.1909,166.23,166.11,26.92201416]
[1752504797833,14.1909,166.23,166.11,16.78468397]
[1752504798449,14.1909,166.23,166.11,26.92201416]
[1752504798644,14.1909,166.23,166.11,16.78468397]
[1752504799045,14.1909,166.23,166.11,10.7393409]
[1752504799643,14.1909,166.23,166.11,0.60201071]
[1752504799842,14.1909,166.23,166.12,16.78468397]
[1752504800734,14.1909,166.23,166.1,16.78468397]
[1752504801135,14.1909,166.23,166.12,16.78468397]
[1752504801355,14.1909,166.23,166.1,16.78468397]
[1752504801537,14.1909,166.23,166.12,16.78468397]
[1752504802055,14.1909,166.23,166.1,26.92201416]
[1752504802229,14.1909,166.23,166.14,16.78468397]
[1752504802557,14.1909,166.23,166.1,10.13733019]
[1752504802861,14.1909,166.23,166.11,21.22817001]
[1752504803062,14.1909,166.23,166.12,4.44348604]
[1752504803244,14.1909,166.23,166.14,16.78468397]
[1752504803554,14.1909,166.23,166.09,16.78468397]
[1752504803933,14.1909,166.23,166.09,26.92201416]
[1752504804134,14.1909,166.23,166.09,16.78468397]
[1752504804333,14.1909,166.23,166.09,26.92201416]
[1752504804533,14.1909,166.23,166.09,16.78468397]
[1752504804860,14.7864,166.22,166.06,16.78468397]
[1752504805463,14.7864,166.22,166.08,16.78468397]
[1752504806760,15.2086,166.21,166.05,16.78468397]
[1752504807643,2.9352,166.2,166.05,16.78468397]
[1752504807832,2.9352,166.18,166.04,16.78468397]
[1752504808253,2.9352,166.18,166.03,16.78468397]
[1752504808649,2.9352,166.18,166.02,16.78468397]
[1752504808836,2.9352,166.18,166.02,26.92201416]
[1752504808837,11.7702,166.17,166.02,26.92201416]
[1752504809037,32.6,166.16,166.02,26.92201416]
[1752504810443,32.6,166.16,166.05,26.92201416]
[1752504810649,32.6,166.16,166.07,16.78468397]
[1752504811766,32.6,166.16,166.09,16.78468397]
[1752504812263,32.6,166.16,166.07,16.78468397]
[1752504812662,32.6,166.16,166.07,17.38683968]
[1752504813073,11.7702,166.17,166.07,27.52416987]
[1752504813479,11.7702,166.17,166.09,16.78468397]
[1752504814380,11.7702,166.17,166.07,10.13733019]
[1752504814549,11.7702,166.17,166.08,16.78468397]
[1752504815168,11.7702,166.17,166.08,10.13733019]
[1752504815373,11.7702,166.17,166.06,16.78468397]
[1752504815674,11.7702,166.17,166.08,10.13733019]
[1752504816664,11.7702,166.17,166.1,16.78468397]
[1752504816969,11.7702,166.17,166.1,26.92201416]
[1752504817276,11.7702,166.17,166.03,68.58]
[1752504817277,35.5152,166.18,166.12,16.78468397]
[1752504817479,12.3896,166.21,166.15,10.13733019]
[1752504817686,12.3896,166.21,166.18,16.78468397]
[1752504817885,2.9865,166.22,166.18,16.78468397]
[1752504818188,44.7646,166.25,166.2,16.78468397]
[1752504818401,12.1846,166.25,166.2,26.92201416]
[1752504818575,0.06,166.25,166.21,10.7389787]
[1752504818764,0.06,166.25,166.21,0.60164851]
[1752504821193,0.06,166.25,166.15,11.5453]
[1752504821194,0.06,166.25,166.18,10.13733019]
[1752504821489,0.06,166.25,166.2,16.78468397]
[1752504823089,0.06,166.25,166.17,16.78468397]
[1752504823880,0.06,166.25,166.15,16.78468397]
[1752504824189,0.06,166.25,166.15,17.38654975]
[1752504824387,0.06,166.25,166.15,27.52387994]
[1752504824566,0.06,166.25,166.15,17.38654975]
[1752504824906,0.06,166.25,166.14,16.78468397]
[1752504825189,0.06,166.25,166.15,10.73919597]
[1752504825771,0.06,166.25,166.18,16.78468397]
[1752504825975,0.06,166.25,166.2,16.78468397]
[1752504826176,0.06,166.25,166.21,0.60164851]
[1752504826801,0.06,166.25,166.18,10.13733019]
[1752504827100,0.06,166.25,166.2,16.78468397]
[1752504831580,0.06,166.25,166.2,17.38636868]
[1752504832787,0.06,166.25,166.22,16.78468397]
[1752504832995,0.06,166.25,166.22,27.52362648]
[1752504833196,0.06,166.25,166.22,17.38629629]
[1752504833703,0.06,166.25,166.23,10.13733019]
[1752504834010,0.06,166.25,166.24,27.5235541]
[1752504834173,0.06,166.25,166.24,17.38622391]
[1752504834367,0.06,166.25,166.24,27.5235541]
[1752504835196,0.06,166.25,166.18,0.60175713]
[1752504835379,0.06,166.25,166.19,16.78468397]
[1752504836884,0.06,166.25,166.17,16.78468397]
[1752504837984,0.06,166.25,166.15,26.92201416]
[1752504838199,0.06,166.25,166.17,16.78468397]
[1752504839494,2.9438,166.24,166.15,16.78468397]
[1752504840292,2.9438,166.24,166.17,16.78468397]
[1752504840696,2.9438,166.24,166.18,0.60175713]
[1752504840878,2.9438,166.24,166.19,16.78468397]
[1752504841479,2.9438,166.24,166.13,16.78468397]
[1752504841684,11.7768,166.23,166.13,16.78468397]
[1752504841905,11.7768,166.23,166.12,16.78468397]
[1752504842084,11.7768,166.23,166.11,16.78468397]
[1752504842289,11.7768,166.23,166.11,26.92201416]
[1752504843016,11.7768,166.23,166.11,16.78468397]
[1752504843703,11.7768,166.23,166.08,16.78468397]
[1752504843886,11.7768,166.23,166.07,27.52416987]
[1752504844093,11.7768,166.23,166.1,16.78468397]
[1752504844299,11.7768,166.23,166.12,16.78468397]
[1752504844482,11.7768,166.23,166.14,16.78468397]
[1752504844683,11.7768,166.23,166.16,16.78468397]
[1752504844995,11.7768,166.23,166.18,16.78468397]
[1752504848010,11.7768,166.23,166.19,0.60172092]
[1752504848383,11.7768,166.23,166.2,16.78468397]
[1752504848584,2.9438,166.24,166.2,16.78468397]
[1752504849913,2.9438,166.24,166.21,0.60164851]
[1752504850703,0.06,166.25,166.21,0.60164851]
[1752504851514,0.06,166.24,166.22,26.92201416]
[1752504851687,0.06,166.24,166.23,17.38626009]
[1752504854714,0.06,166.24,166.23,16.78468397]
[1752504863009,0.06,166.24,166.15,0.03]
[1752504863218,12.4392,166.23,166.15,0.03]
[1752504864410,12.4392,166.23,166.16,0.60182956]
[1752504865012,12.4392,166.23,166.17,16.78468397]
[1752504865923,12.4392,166.23,166.15,0.03]
[1752504866427,12.4392,166.23,166.16,16.78468397]
[1752504867427,3.1073,166.22,166.15,0.03]
[1752504869722,3.1073,166.22,166.15,16.81468397]
[1752504869908,3.1073,166.22,166.17,16.78468397]
[1752504870833,3.1073,166.22,166.18,0.60175713]
[1752504871215,3.1073,166.22,166.19,16.78468397]
[1752504871525,0.06,166.24,166.2,0.60168471]
[1752504874031,0.06,166.24,166.21,16.78468397]
[1752504874828,0.06,166.24,166.23,16.78468397]
[1752504876318,0.06,166.24,166.19,16.78468397]
[1752504876517,0.06,166.24,166.21,16.78468397]
[1752504878444,0.06,166.24,166.17,0.03]
[1752504878621,0.06,166.24,166.17,16.81468397]
[1752504879636,0.06,166.24,166.19,16.78468397]
[1752504881634,0.06,166.24,166.21,16.78468397]
[1752504881831,0.06,166.24,166.22,0.60161232]
[1752504882415,0.06,166.24,166.23,16.78468397]
[1752504885327,0.06,166.24,166.23,0.60157612]
[1752504886041,0.06,166.24,166.23,17.38626009]
[1752504887246,0.06,166.24,166.23,16.78468397]
[1752504890839,0.06,166.24,166.23,27.52359028]
[1752504891039,0.06,166.24,166.23,24.06673488]
[1752504893453,0.06,166.24,166.23,17.38626009]
[1752504893644,0.06,166.24,166.23,23.46515876]
[1752504893842,0.06,166.24,166.23,16.78468397]
[1752504894224,0.06,166.24,166.23,24.06673488]
[1752504895043,0.06,166.24,166.23,24.09673488]
[1752504895357,0.06,166.24,166.23,17.41626009]
[1752504896371,0.06,166.24,166.23,16.81468397]
[1752504901841,0.06,166.24,166.23,23.49515876]
[1752504904761,0.06,166.24,166.23,24.09673488]
[1752504905642,0.06,166.24,166.23,17.41626009]
[1752504906258,0.06,166.24,166.23,24.09673488]
[1752504907457,0.06,166.24,166.23,56.55673488]
[1752504912061,0.06,166.24,166.23,49.87626009]
[1752504912261,0.06,166.24,166.23,56.55673488]
[1752504913273,0.06,166.24,166.23,65.94106617]
[1752504913473,0.06,166.24,166.23,155.54106617]
[1752504913669,0.06,166.24,166.23,154.93949005]
[1752504914551,0.06,166.25,166.24,16.78468397]
[1752504914749,0.06,166.25,166.24,40.13150478]
[1752504914960,0.06,166.25,166.24,33.45102999]
[1752504915645,0.06,166.25,166.24,26.7705552]
[1752504915872,0.06,166.25,166.24,21.8711545]
[1752504916271,0.06,166.25,166.24,21.26961456]
[1752504917144,3.1733,166.25,166.24,21.26961456]
[1752504918071,3.1733,166.25,166.23,0.03]
[1752504921067,0.06,166.25,166.23,0.03]
[1752504921385,0.06,166.25,166.24,16.78468397]
[1752504922570,0.06,166.25,166.24,17.38622391]
[1752504924582,0.06,166.25,166.24,24.0666987]
[1752504925496,0.06,166.25,166.24,17.38622391]
[1752504925794,0.06,166.25,166.24,24.0666987]
[1752504926795,0.06,166.25,166.24,17.38622391]
[1752504927478,0.06,166.25,166.24,24.0666987]
[1752504928693,0.06,166.25,166.24,56.4666987]
[1752504928897,0.06,166.25,166.24,49.78622391]
[1752504929079,0.06,166.25,166.24,56.4666987]
[1752504933600,0.06,166.25,166.24,49.78622391]
[1752504933924,0.06,166.25,166.24,56.4666987]
[1752504934295,0.06,166.25,166.24,49.78622391]
[1752504934603,0.06,166.25,166.24,56.4666987]
[1752504935002,0.06,166.25,166.24,49.78622391]
[1752504935204,0.06,166.25,166.24,56.4666987]
[1752504935785,0.06,166.25,166.24,49.78622391]
[1752504935999,0.06,166.25,166.24,56.4666987]
[1752504937306,0.06,166.25,166.24,72.53150478]
[1752504937605,0.06,166.25,166.24,162.13150478]
[1752504937798,0.06,166.25,166.24,161.52996484]
[1752504939099,0.06,166.3,166.25,16.78468397]
[1752504939299,0.06,166.3,166.29,23.46515876]
[1752504939497,0.06,166.3,166.29,55.84515876]
[1752504939698,0.06,166.3,166.29,56.44651783]
[1752504941611,0.06,166.3,166.29,65.83084912]
[1752504941990,0.06,166.3,166.29,155.43084912]
[1752504942204,0.06,166.3,166.29,154.82949005]
[1752504943300,0.06,166.31,166.3,23.46515876]
[1752504943495,0.06,166.31,166.3,56.42648167]
[1752504943987,0.06,166.31,166.3,65.81081296]
[1752504944718,0.06,166.31,166.3,72.49128775]
[1752504945493,0.1,166.35,166.3,152.70695646]
[1752504945698,0.1,166.35,166.34,23.46515876]
[1752504946028,0.1,166.35,166.34,146.02633706]
[1752504946205,0.1,166.35,166.34,138.74468397]
[1752504946394,0.1,166.35,166.34,145.42515876]
[1752504946595,0.1,166.35,166.34,106.38468397]
[1752504946795,0.1,166.35,166.34,139.32586227]
[1752504947004,0.1,166.35,166.34,138.72468397]
[1752504947523,0.1,166.35,166.34,145.40515876]
[1752504947699,0.1,166.35,166.34,154.78949005]
[1752504950596,0.06,166.37,166.35,26.16901526]
[1752504950799,0.06,166.37,166.35,16.78468397]
[1752504951016,0.06,166.37,166.34,0.6011783]
[1752504952622,0.06,166.37,166.36,16.78468397]
[1752504952823,0.06,166.37,166.36,24.06626479]
[1752504953223,0.06,166.37,166.36,17.38579]
[1752504953932,0.06,166.37,166.36,24.06626479]
[1752504954504,0.06,166.37,166.36,33.45059608]
[1752504954804,3.0931,166.42,166.36,33.45059608]
[1752504955026,3.0931,166.42,166.4,16.78468397]
[1752504955302,3.0931,166.42,166.41,17.38560939]
[1752504956112,0.1,166.42,166.41,17.38560939]
[1752504958430,0.1,166.42,166.41,56.38608418]
[1752504958636,0.1,166.42,166.41,49.70560939]
[1752504958829,0.1,166.42,166.41,49.68560939]
[1752504959243,0.1,166.42,166.41,56.36608418]
[1752504959431,0.1,166.42,166.41,17.38560939]
[1752504959735,0.1,166.42,166.41,56.36608418]
[1752504960033,0.1,166.42,166.41,65.75041547]
[1752504960335,0.1,166.42,166.41,155.35041547]
[1752504960639,0.1,166.42,166.41,154.74949005]
[1752504960934,0.1,166.42,166.41,106.38468397]
[1752504961616,0.1,166.42,166.41,139.28560939]
[1752504961817,0.1,166.42,166.41,138.68468397]
[1752504962038,0.1,166.42,166.41,145.36515876]
[1752504962515,3.0733,166.46,166.41,145.36515876]
[1752504962710,3.0733,166.46,166.42,16.78468397]
[1752504962906,3.0733,166.46,166.44,16.78468397]
[1752504963130,3.0733,166.46,166.4,16.78468397]
[1752504963517,3.0733,166.46,166.39,16.78468397]
[1752504963731,3.0733,166.46,166.39,17.38568162]
[1752504967635,3.0733,166.46,166.37,16.78468397]
[1752504968414,3.0733,166.46,166.33,49.06468397]
[1752504968739,3.0733,166.46,166.35,23.46515876]
[1752504969039,3.0733,166.46,166.37,16.78468397]
[1752504969635,3.0733,166.46,166.39,16.78468397]
[1752504970332,3.0733,166.46,166.41,16.78468397]
[1752504972921,3.0733,166.46,166.43,16.78468397]
[1752504973145,3.0733,166.46,166.45,16.78468397]
[1752504973348,11.3279,166.5,166.45,16.78468397]
[1752504973647,11.3279,166.5,166.47,16.78468397]
[1752504973648,14.4065,166.5,166.47,16.78468397]
[1752504974054,14.4065,166.5,166.49,16.78468397]
[1752504974055,3.0786,166.5,166.49,16.78468397]
[1752504974232,0.06,166.53,166.49,16.78468397]
[1752504974436,0.06,166.53,166.5,0.6006006]
[1752504974753,0.06,166.53,166.46,16.78468397]
[1752504974931,0.06,166.53,166.47,7.28118362]
[1752504976119,0.06,166.53,166.48,16.78468397]
[1752504976519,0.06,166.53,166.46,16.78468397]
[1752504976744,0.06,166.53,166.48,16.78468397]
[1752504978132,0.06,166.53,166.5,16.78468397]
[1752504980236,0.06,166.53,166.52,16.78468397]
[1752504981733,0.06,166.53,166.45,2.8586]
[1752504981734,0.06,166.53,166.47,16.78468397]
[1752504982046,0.06,166.53,166.49,16.78468397]
[1752504982251,0.06,166.53,166.51,23.46515876]
[1752504982554,0.06,166.53,166.52,17.38521243]
[1752504984336,0.06,166.53,166.52,16.78468397]
[1752504988741,0.06,166.53,166.47,16.78468397]
[1752504989167,0.06,166.53,166.45,16.78468397]
[1752504989537,3.1068,166.52,166.42,16.78468397]
[1752504989863,12.1245,166.51,166.42,16.78468397]
[1752504990046,12.1245,166.51,166.42,17.38557328]
[1752504990454,12.1245,166.51,166.42,24.06604807]
[1752504990653,12.1245,166.51,166.45,6.68047479]
[1752504990868,12.1245,166.51,166.46,16.78468397]
[1752504991379,12.1245,166.51,166.48,16.78468397]
[1752504991942,3.1068,166.52,166.48,16.78468397]
[1752504992147,0.06,166.53,166.5,16.78468397]
[1752504992443,0.06,166.53,166.51,0.60056453]
[1752504992644,0.06,166.53,166.52,16.78468397]
[1752504994370,0.06,166.53,166.46,16.78468397]
[1752504994662,12.1419,166.52,166.48,16.78468397]
[1752504994879,12.1419,166.52,166.45,16.78468397]
[1752504995073,12.1419,166.52,166.43,16.78468397]
[1752504997083,12.1419,166.52,166.43,23.46515876]
[1752504997372,12.1419,166.52,166.43,24.06601197]
[1752504997562,12.1419,166.52,166.43,17.38553718]
[1752504998286,3.0307,166.51,166.43,16.78468397]
[1752505000278,3.0307,166.51,166.43,17.38553718]
[1752505000484,0.06,166.53,166.47,23.46515876]
[1752505000653,0.06,166.53,166.49,16.78468397]
[1752505002185,0.06,166.53,166.48,0.60067275]
[1752505002186,0.06,166.53,166.46,16.78468397]
[1752505002362,0.06,166.53,166.48,16.78468397]
[1752505002681,0.06,166.53,166.5,16.78468397]
[1752505003169,0.06,166.53,166.51,0.60056453]
[1752505003755,0.06,166.53,166.46,24.06590368]
[1752505003961,0.06,166.53,166.47,16.78468397]
[1752505004162,0.06,166.53,166.48,0.60067275]
[1752505004375,0.06,166.53,166.49,16.78468397]
[1752505005453,0.06,166.53,166.45,16.78468397]
[1752505005661,0.06,166.53,166.47,16.78468397]
[1752505005871,0.06,166.53,166.49,16.78468397]
[1752505008073,0.06,166.53,166.45,16.78468397]
[1752505009364,14.8314,166.52,166.44,16.78468397]
[1752505009765,14.8314,166.52,166.41,0.03]
[1752505010368,2.9953,166.51,166.41,0.03]
[1752505010775,12.3205,166.5,166.41,0.03]
[1752505010960,3.0125,166.49,166.41,0.03]
[1752505014080,3.0125,166.49,166.42,16.78468397]
[1752505014385,3.0125,166.49,166.44,16.78468397]
[1752505016170,3.0125,166.49,166.41,0.03]
[1752505019461,3.0125,166.49,166.42,16.78468397]
[1752505019889,3.0125,166.49,166.44,16.78468397]
[1752505020576,3.0125,166.49,166.46,16.78468397]
[1752505020976,3.0125,166.49,166.44,16.78468397]
[1752505021676,3.0125,166.49,166.41,16.81468397]
[1752505022389,3.0125,166.49,166.41,0.03]
[1752505030367,32.1,166.48,166.41,0.03]
[1752505031575,32.1,166.48,166.35,17.41582614]
[1752505031576,14.7649,166.47,166.35,0.03]
[1752505032091,14.7649,166.47,166.35,16.81468397]
[1752505032671,14.7649,166.47,166.37,16.78468397]
[1752505033189,14.7649,166.47,166.39,16.78468397]
[1752505033496,14.7649,166.47,166.41,16.78468397]
[1752505033793,2.8143,166.47,166.43,16.78468397]
[1752505034174,2.8143,166.47,166.44,4.47184239]
[1752505034365,2.8143,166.47,166.46,16.78468397]
[1752505034570,2.8143,166.47,166.46,21.2569047]
[1752505035785,15.1838,166.51,166.46,21.2569047]
[1752505035992,15.1838,166.51,166.47,4.47222073]
[1752505036202,15.1838,166.51,166.42,16.78468397]
[1752505036515,15.1838,166.51,166.43,4.47202361]
[1752505036707,15.1838,166.51,166.44,4.47202361]
[1752505037006,15.1838,166.51,166.37,16.78468397]
[1752505037201,15.1838,166.51,166.39,16.78468397]
[1752505037685,15.1838,166.51,166.37,16.78468397]
[1752505039684,15.1838,166.51,166.38,0.60103377]
[1752505039883,15.1838,166.51,166.39,27.90189642]
[1752505040098,15.1838,166.51,166.41,16.78468397]
[1752505041113,3.0515,166.5,166.37,16.78468397]
[1752505041610,3.0515,166.5,166.39,16.78468397]
[1752505041788,0.67403695,166.5,166.39,16.78468397]
[1752505042788,0.67403695,166.5,166.35,0.63114217]
[1752505042994,0.67403695,166.5,166.36,16.78468397]
[1752505043899,12.1164,166.5,166.36,16.78468397]
[1752505044906,3.0964,166.49,166.38,27.90189642]
[1752505045082,3.0964,166.49,166.38,16.78468397]
[1752505048100,3.0964,166.49,166.4,16.78468397]
[1752505050197,3.0964,166.49,166.36,16.78468397]
[1752505051788,12.1496,166.48,166.36,16.78468397]
[1752505051992,3.0202,166.47,166.35,16.81468397]
[1752505052912,3.0202,166.47,166.35,23.48560145]
[1752505053093,3.0202,166.47,166.37,23.45560145]
[1752505053294,3.0202,166.47,166.39,16.78468397]
[1752505053494,0.8372,166.47,166.39,16.78468397]
[1752505054799,0.8372,166.47,166.35,17.41582614]
[1752505055004,0.8372,166.47,166.36,16.78468397]
[1752505055795,0.8372,166.47,166.37,0.6010699]
[1752505056520,0.8372,166.47,166.38,16.78468397]
[1752505057727,0.8372,166.47,166.39,16.78468397]
[1752505059325,0.8372,166.47,166.38,0.60103377]
[1752505059824,0.8372,166.47,166.39,16.78468397]
[1752505061823,0.8372,166.47,166.38,0.60103377]
[1752505066933,0.8372,166.47,166.39,27.90519471]
[1752505067120,0.8372,166.47,166.41,16.78468397]
[1752505067434,0.8372,166.47,166.42,4.48845879]
[1752505067632,0.8372,166.47,166.44,16.78468397]
[1752505067927,0.8372,166.47,166.45,4.48845879]
[1752505068107,0.8372,166.47,166.46,4.48845879]
[1752505072611,0.8372,166.47,166.46,4.48907967]
[1752505075641,0.8372,166.47,166.46,4.49058847]
[1752505079336,32.12,166.5,166.46,4.49058847]
[1752505079651,32.12,166.5,166.47,4.49058847]
[1752505079847,0.06,166.5,166.48,4.49058847]
[1752505080038,0.06,166.5,166.49,4.49058847]
[1752505082333,0.06,166.5,166.49,21.27527244]
[1752505083236,0.06,166.5,166.49,16.78468397]
[1752505083437,0.06,166.5,166.49,21.27293041]
[1752505083842,0.06,166.5,166.49,4.48824644]
[1752505084240,0.06,166.5,166.49,4.48472388]
[1752505085552,0.06,166.5,166.44,16.78468397]
[1752505087351,0.06,166.5,166.46,16.78468397]
[1752505088752,0.06,166.5,166.44,16.78468397]
[1752505089434,0.06,166.5,166.45,4.47806504]
[1752505089640,0.06,166.5,166.46,4.47806504]
[1752505089959,0.06,166.5,166.47,4.47806504]
[1752505090253,0.06,166.5,166.48,4.47806504]
[1752505090455,0.06,166.5,166.44,16.78468397]
[1752505090456,0.06,166.5,166.49,4.47806504]
[1752505092252,0.06,166.5,166.49,4.47726747]
[1752505092832,0.06,166.5,166.49,4.47695017]
[1752505093861,0.06,166.5,166.49,21.26163414]